bitfinex/quotes_ETHUSD_20250625
["timestamp","ask_amount","ask_price","bid_price","bid_amount"]
[1750840218987,10.0,2433.7,2433.3,4.10956523]
[1750840219195,10.0,2433.3,2432.3,0.64234612]
[1750840219512,1.5687,2433.2,2432.4,10.85616592]
[1750840219688,5.67852724,2433.2,2432.7,4.11057771]
[1750840220009,1.5687,2433.2,2432.2,1.743]
[1750840220190,1.5687,2433.2,2432.7,4.11051522]
[1750840220394,5.67854363,2433.2,2432.7,4.11051522]
[1750840220600,16.55107825,2433.1,2432.6,4.11076508]
[1750840220780,16.55107825,2433.1,2432.5,4.11096834]
[1750840220781,11.632,2433.0,2432.5,4.11096834]
[1750840220981,11.632,2433.0,2432.6,4.11080979]
[1750840221183,11.632,2433.0,2432.7,4.11064416]
[1750840221382,1.632,2433.0,2432.6,4.11075465]
[1750840221578,11.632,2433.0,2432.6,4.11075465]
[1750840221809,11.632,2433.0,2432.7,4.11065893]
[1750840222010,10.66063765,2433.4,2432.9,4.11023938]
[1750840222011,1.5128,2433.2,2432.9,4.11023938]
[1750840222219,1.6424,2433.4,2432.7,0.55]
[1750840222411,1.6424,2433.4,2433.0,4.1100924]
[1750840222616,1.6424,2433.4,2433.1,4.109953]
[1750840222784,1.6424,2433.6,2433.0,0.55]
[1750840222986,1.6424,2433.6,2433.2,4.10965225]
[1750840223211,1.6424,2433.6,2433.2,4.1097089]
[1750840223392,1.6424,2433.6,2433.3,4.10956765]
[1750840223600,3.46645547,2433.6,2433.0,4.11015207]
[1750840223808,1.6424,2433.6,2433.3,4.10963958]
[1750840226218,1.6424,2433.6,2433.4,4.10943794]
[1750840226713,1.6424,2433.6,2433.3,4.10958345]
[1750840226914,10.0,2433.4,2433.0,0.55]
[1750840227228,10.0,2433.4,2433.1,4.10998314]
[1750840227786,10.0,2433.4,2433.2,4.10979056]
[1750840227992,1.6424,2433.6,2433.3,4.10964533]
[1750840228195,11.6424,2433.6,2433.1,4.10906856]
[1750840228430,11.6424,2433.6,2433.2,4.10973484]
[1750840228595,11.6424,2433.6,2433.1,4.10906856]
[1750840228596,11.6424,2433.6,2433.1,4.1083034]
[1750840228798,11.6424,2433.6,2433.2,4.1097252]
[1750840229006,1.5226,2433.8,2433.6,4.10899798]
[1750840229404,11.5226,2434.0,2433.6,4.10899798]
[1750840229605,11.5226,2434.0,2433.4,4.10938832]
[1750840229606,5.94563367,2434.0,2433.4,4.10938832]
[1750840229815,14.10864384,2433.9,2433.4,10.86538832]
[1750840230012,10.0,2433.9,2433.5,4.10928231]
[1750840230206,10.0,2433.9,2433.4,10.86541901]
[1750840230616,10.0,2433.9,2433.4,6.756]
[1750840230819,10.0,2433.5,2433.2,4.10970162]
[1750840231105,5.70727983,2433.4,2432.9,12.6342378]
[1750840231417,1.5978,2433.4,2433.0,4.11015165]
[1750840231630,1.5978,2433.4,2432.8,4.11045922]
[1750840231631,5.70729832,2433.4,2432.9,4.11023531]
[1750840232435,10.0,2433.3,2432.8,0.55]
[1750840232737,16.55107825,2433.3,2432.7,6.759]
[1750840232906,20.66081398,2433.3,2432.8,4.11047162]
[1750840233227,5.70051458,2433.2,2432.7,10.86959592]
[1750840233439,1.5906,2433.2,2432.7,10.86959592]
[1750840233612,1.5906,2433.2,2432.8,4.11037176]
[1750840234194,1.5906,2433.2,2432.5,1.768]
[1750840234398,4.11024607,2433.0,2432.6,6.759]
[1750840235134,1.6148,2432.9,2432.6,6.759]
[1750840235313,1.6148,2432.9,2432.5,5.87892055]
[1750840235507,14.11040024,2432.9,2431.9,4.75449384]
[1750840235709,14.11040024,2432.9,2432.2,4.1113717]
[1750840235710,11.5048,2432.8,2432.2,4.1113717]
[1750840235912,10.0,2432.6,2432.2,4.1113717]
[1750840236313,10.0,2432.6,2432.1,4.11158196]
[1750840236506,10.0,2432.6,2431.9,8.536]
[1750840236748,10.0,2432.6,2432.3,4.11123068]
[1750840237032,1.5048,2432.8,2432.5,4.11097834]
[1750840237512,1.5048,2432.8,2432.4,4.11109668]
[1750840238034,1.5048,2432.8,2432.5,4.11098728]
[1750840238826,1.5048,2432.8,2432.5,4.11096491]
[1750840239218,1.5048,2432.8,2431.9,8.536]
[1750840239624,1.5048,2432.8,2432.0,4.1118421]
[1750840239848,1.5048,2432.8,2432.6,4.11082229]
[1750840240051,1.5048,2432.8,2432.5,4.11091999]
[1750840240661,16.55107825,2432.9,2432.2,1.768]
[1750840240665,1.5732,2432.7,2432.2,1.768]
[1750840240814,1.5732,2432.7,2431.2,0.21458672]
[1750840240815,11.5732,2432.4,2432.1,4.11166984]
[1750840241008,1.5732,2432.4,2432.1,4.11166984]
[1750840241545,1.5732,2432.4,2432.2,4.11141012]
[1750840241744,1.5732,2432.4,2432.1,4.11159873]
[1750840241944,1.5732,2432.4,2432.2,4.11146637]
[1750840242239,20.8897502,2432.7,2431.7,4.11234062]
[1750840242240,1.5732,2432.3,2431.9,4.11190646]
[1750840242440,11.5732,2432.3,2431.9,4.11190646]
[1750840242645,11.5732,2432.3,2432.0,4.11183423]
[1750840242646,1.5732,2432.3,2432.0,4.11183423]
[1750840242846,1.5732,2432.3,2431.9,4.1119546]
[1750840243058,5.68467409,2432.3,2431.6,0.0025]
[1750840243268,5.68467409,2432.3,2431.8,4.1121009]
[1750840243771,5.68467409,2432.3,2430.7,13.97488632]
[1750840243772,5.68467409,2432.3,2431.2,4.11308776]
[1750840243773,1.5424,2431.7,2431.2,4.11308776]
[1750840243972,10.0,2431.5,2431.1,4.1132726]
[1750840244169,0.5,2430.2,2430.1,4.11505699]
[1750840244462,0.5,2430.4,2430.0,4.11510013]
[1750840244631,1.5406,2430.6,2429.8,5.88350942]
[1750840244827,1.5406,2430.6,2429.9,4.1152279]
[1750840245050,16.55107825,2431.0,2429.9,1.5169]
[1750840245259,4.1125455,2431.6,2430.0,0.34353193]
[1750840245472,14.11331819,2431.2,2430.4,4.1144045]
[1750840245637,10.0,2430.9,2430.2,5.88278751]
[1750840245977,4.11387197,2430.8,2430.2,1.768]
[1750840246277,4.11415498,2430.7,2430.3,0.34348953]
[1750840246577,14.11380635,2430.9,2430.3,4.45809336]
[1750840246737,10.0,2430.9,2430.4,4.11450721]
[1750840247133,0.31257064,2431.6,2430.3,4.45810921]
[1750840247134,4.11319842,2431.2,2430.3,4.45810921]
[1750840247332,10.0,2430.9,2430.3,6.30410921]
[1750840247548,14.1137642,2430.9,2430.3,2.18948953]
[1750840247866,10.0,2430.9,2430.4,4.11454904]
[1750840248054,1.515,2430.8,2430.4,4.11454904]
[1750840248376,1.515,2430.8,2430.3,1.846]
[1750840248551,1.515,2431.2,2430.4,0.55]
[1750840248749,1.515,2431.2,2430.4,4.66448811]
[1750840249048,1.515,2431.2,2430.9,4.11370225]
[1750840249256,1.515,2431.2,2430.9,4.1136067]
[1750840249445,1.515,2431.2,2430.7,4.11404122]
[1750840249647,1.515,2431.2,2430.9,4.11368526]
[1750840249847,1.515,2431.2,2430.9,4.11355941]
[1750840250246,1.515,2431.2,2430.8,4.11373533]
[1750840250842,1.6055,2431.5,2430.6,0.55]
[1750840251067,1.6055,2431.5,2430.8,4.11379925]
[1750840251375,4.11221218,2431.8,2431.2,4.11308351]
[1750840251577,4.11221218,2431.8,2430.8,5.9597501]
[1750840251578,10.0,2431.7,2431.3,4.1129993]
[1750840251779,4.11194409,2432.0,2431.4,4.11269839]
[1750840252094,4.11194409,2432.0,2431.1,4.11331891]
[1750840252095,10.0,2431.7,2431.1,4.11331891]
[1750840252373,4.11220725,2431.8,2431.3,4.11299445]
[1750840252543,0.3113254,2431.8,2431.0,1.6122]
[1750840252743,4.11222383,2431.8,2431.3,4.11294323]
[1750840252956,4.11238711,2431.7,2431.2,4.11312047]
[1750840253586,4.11241081,2431.7,2431.2,4.11312047]
[1750840253769,4.11313702,2431.3,2430.7,1.5296]
[1750840253976,4.11313702,2431.3,2430.7,4.11395739]
[1750840253977,11.6644,2431.2,2430.7,4.11395739]
[1750840254293,5.77759541,2431.2,2430.7,4.11395739]
[1750840254657,5.77759541,2431.2,2430.6,1.846]
[1750840254658,10.0,2431.0,2430.6,5.96017088]
[1750840254881,10.0,2431.0,2430.5,4.1142521]
[1750840255087,10.0,2430.8,2430.2,4.11475301]
[1750840255287,14.11401757,2430.8,2430.2,4.1147762]
[1750840255460,14.11401757,2430.8,2430.3,0.34348953]
[1750840255660,4.11405254,2430.7,2430.3,0.34348953]
[1750840256099,14.1139518,2430.8,2430.3,4.45819994]
[1750840256268,14.1139518,2430.8,2430.3,0.34348953]
[1750840256474,10.0,2430.8,2430.3,0.34348953]
[1750840256785,10.0,2430.8,2430.5,4.11428396]
[1750840257509,1.5504,2430.9,2430.5,4.11428396]
[1750840257717,1.5504,2430.9,2430.4,4.11446313]
[1750840257860,10.0,2430.8,2430.3,0.34348953]
[1750840258056,1.5504,2430.9,2430.4,4.11452185]
[1750840258257,10.0,2430.8,2430.4,4.11454904]
[1750840261268,10.0,2430.6,2430.2,4.11478043]
[1750840261570,5.66534761,2430.7,2430.1,4.11502198]
[1750840261571,1.5513,2430.7,2430.3,4.11471514]
[1750840261885,1.5513,2430.7,2430.4,4.11445692]
[1750840262067,1.5513,2430.7,2430.5,4.11435576]
[1750840262264,1.5216,2431.0,2430.7,4.11396575]
[1750840262608,1.5216,2431.0,2430.6,4.11411407]
[1750840262974,5.63515952,2431.0,2430.3,4.11466808]
[1750840263173,4.11378959,2430.9,2430.4,4.11454345]
[1750840263394,5.63520099,2431.0,2430.5,4.11434191]
[1750840263576,1.5216,2431.0,2430.2,4.1148447]
[1750840263780,1.5216,2431.0,2430.6,4.11409319]
[1750840264595,1.5216,2431.0,2430.7,4.11400267]
[1750840264800,4.11276498,2431.5,2431.0,4.11341559]
[1750840265101,10.0,2431.4,2430.5,1.5107]
[1750840265297,11.6358,2431.0,2430.6,4.11414795]
[1750840265500,15.74936095,2431.0,2430.5,4.1142924]
[1750840266002,4.11371498,2430.9,2430.4,4.11446319]
[1750840266303,15.7494129,2431.0,2430.5,4.11434246]
[1750840266504,17.7357075,2431.0,2430.5,4.11434246]
[1750840266889,10.0,2430.7,2430.1,5.96193466]
[1750840267094,1.6568,2430.6,2430.2,4.11479447]
[1750840267598,4.11464838,2430.4,2429.9,4.11526096]
[1750840267900,10.0,2430.3,2430.0,4.11519235]
[1750840268102,14.11459808,2430.4,2430.0,0.34353193]
[1750840268507,11.57709297,2430.5,2430.1,4.11497194]
[1750840268808,15.69148334,2430.5,2430.0,4.45864289]
[1750840269318,15.69149246,2430.5,2430.0,4.45866553]
[1750840269511,4.11472311,2430.3,2430.0,0.34353193]
[1750840269675,1.573,2430.2,2430.0,0.34353193]
[1750840270278,11.573,2430.2,2430.0,0.34353193]
[1750840270787,1.573,2430.2,2430.0,4.45873849]
[1750840270982,1.573,2430.2,2430.1,4.11505699]
[1750840271211,10.0,2430.6,2430.0,0.34353193]
[1750840271403,6.73693819,2430.5,2430.0,0.34353193]
[1750840271723,2.93677451,2430.5,2430.0,0.34353193]
[1750840271906,0.31421607,2430.5,2430.0,0.34353193]
[1750840272104,14.11430849,2430.6,2430.1,4.11505699]
[1750840272300,4.11463839,2430.4,2430.0,0.34353193]
[1750840272505,10.0,2430.3,2430.0,0.34353193]
[1750840273217,10.0,2430.0,2428.3,1.6628]
[1750840273511,4.11620488,2429.5,2428.7,5.78009407]
[1750840273713,10.0,2429.5,2428.8,4.11720249]
[1750840274035,14.11612706,2429.5,2428.9,4.11696079]
[1750840274239,14.11612706,2429.5,2428.7,1.6628]
[1750840274240,11.5312,2429.5,2428.7,1.6628]
[1750840274395,1.5312,2429.9,2429.0,0.55]
[1750840274597,4.11556821,2429.8,2429.2,5.69150073]
[1750840274787,15.64667882,2429.9,2429.4,4.116214]
[1750840275188,15.64667882,2429.9,2429.3,4.11632873]
[1750840275532,15.64667882,2429.9,2429.4,4.11621748]
[1750840275690,1.5312,2429.9,2429.3,4.11641213]
[1750840275891,5.64823959,2430.3,2429.5,4.11607326]
[1750840276120,1.5335,2430.3,2429.8,4.11548632]
[1750840276722,5.64825814,2430.3,2429.8,4.11548632]
[1750840277020,1.5335,2430.3,2430.0,4.11521534]
[1750840277224,1.5335,2430.3,2430.0,4.11513199]
[1750840277391,1.5335,2430.3,2430.0,4.11509289]
[1750840277588,1.5576,2430.6,2429.8,0.55]
[1750840277823,1.87364312,2430.6,2430.2,4.11482866]
[1750840278198,3.5438946,2431.0,2430.1,1.5358]
[1750840278406,5.67113539,2431.0,2430.3,4.11462985]
[1750840278599,10.0,2430.8,2430.3,4.11462985]
[1750840278922,15.67119926,2431.0,2430.3,4.11458965]
[1750840279129,11.5576,2431.0,2430.5,4.11434763]
[1750840279291,1.5576,2431.0,2430.5,4.11423539]
[1750840279497,1.5576,2431.0,2430.1,8.60083866]
[1750840279697,5.6711461,2431.0,2430.1,4.4858]
[1750840279894,1.87145245,2431.0,2430.3,4.11457949]
[1750840280129,10.0,2430.6,2430.1,4.11493342]
[1750840280310,4.11419286,2430.7,2430.1,6.00193342]
[1750840280627,4.11424208,2430.6,2430.1,6.00193342]
[1750840280926,5.52550144,2430.7,2430.2,4.114864]
[1750840281228,10.0,2430.4,2429.9,4.11529963]
[1750840281526,10.0,2430.5,2430.1,4.11505535]
[1750840281732,10.0,2430.5,2430.0,4.11516708]
[1750840281926,10.0,2430.5,2430.0,4.11522633]
[1750840282225,10.0,2430.5,2430.1,4.11502807]
[1750840282936,10.0,2430.5,2430.2,4.11487583]
[1750840283233,10.0,2430.5,2430.2,4.11475398]
[1750840284033,10.0,2430.8,2430.2,4.11477093]
[1750840284219,14.11390429,2430.8,2430.2,4.114731]
[1750840284426,14.11390429,2430.8,2430.3,4.1147077]
[1750840284621,10.0,2430.8,2429.9,4.66534441]
[1750840284820,1.5146,2431.2,2430.1,0.55]
[1750840285019,1.5146,2431.2,2430.9,4.11358666]
[1750840285330,1.5146,2431.2,2430.6,3.39094122]
[1750840285530,1.5146,2431.2,2430.9,4.11368637]
[1750840285911,1.5146,2431.2,2430.6,7.50509583]
[1750840286217,1.5146,2431.2,2430.7,4.11394679]
[1750840286423,10.0,2431.1,2430.7,4.11394679]
[1750840287233,1.5146,2431.2,2430.8,4.11386777]
[1750840287937,1.5146,2431.2,2430.9,4.11366379]
[1750840288101,14.11289774,2431.4,2430.9,4.11366379]
[1750840288306,4.11303123,2431.3,2430.7,3.7025974]
[1750840288528,11.82256399,2431.4,2430.7,3.7025974]
[1750840288529,15.93550143,2431.4,2430.8,4.11378248]
[1750840288716,4.11304694,2431.3,2430.8,4.11378248]
[1750840288916,15.93551046,2431.4,2430.8,4.11378248]
[1750840289321,4.11310406,2431.3,2430.8,4.11378248]
[1750840291416,16.2484958,2431.4,2430.7,4.11400491]
[1750840291620,4.1130551,2431.3,2430.8,4.11379516]
[1750840291937,2.19972509,2431.3,2430.9,4.11366651]
[1750840292136,12.19972509,2431.3,2431.0,4.11351315]
[1750840292308,6.31277035,2431.3,2430.7,4.11397205]
[1750840292507,4.11304526,2431.3,2430.9,4.11370183]
[1750840292735,0.31298709,2431.4,2431.0,4.11350539]
[1750840293034,5.74839116,2431.5,2431.1,4.11320728]
[1750840293035,1.6357,2431.5,2431.1,4.11320728]
[1750840293232,1.6357,2431.5,2431.1,4.11319658]
[1750840293739,5.67569069,2431.8,2431.1,1.6475]
[1750840293938,5.67569069,2431.8,2431.5,4.11258304]
[1750840293939,1.5635,2431.8,2431.5,4.11258304]
[1750840294141,1.5635,2431.8,2431.4,4.1127552]
[1750840294338,1.5635,2431.8,2431.2,4.11319512]
[1750840294543,1.6129,2432.5,2431.6,1.6151]
[1750840294756,5.72399435,2432.5,2431.8,4.11218027]
[1750840294906,1.6129,2432.5,2431.7,1.887]
[1750840295106,0.57237864,2432.4,2432.1,4.11156513]
[1750840295342,5.99717839,2433.0,2432.2,4.11145002]
[1750840295343,5.66413971,2432.7,2432.2,4.11145002]
[1750840295539,15.66414875,2432.7,2432.2,4.11145002]
[1750840295735,5.66414875,2432.7,2432.0,4.11177638]
[1750840295940,1.5534,2432.7,2432.2,4.11136585]
[1750840296156,0.56639376,2432.6,2432.3,4.11128166]
[1750840296335,0.56639376,2432.6,2432.3,4.11123925]
[1750840296648,0.56639376,2432.6,2432.1,4.1115928]
[1750840296649,4.67724872,2432.6,2432.1,4.1115928]
[1750840296814,10.0,2432.5,2432.0,4.11175766]
[1750840297014,4.11114016,2432.5,2431.9,4.11191763]
[1750840297220,10.0,2432.2,2431.6,7.60221538]
[1750840297418,10.0,2432.2,2431.7,4.11224667]
[1750840297852,4.11151801,2432.2,2431.7,4.11224667]
[1750840298429,1.6116,2432.2,2430.8,4.11374871]
[1750840298747,1.6116,2431.8,2431.0,4.11353352]
[1750840298957,4.11247719,2431.7,2431.2,4.11317778]
[1750840299251,14.11247719,2431.7,2431.1,4.11326215]
[1750840299423,4.11252266,2431.6,2431.1,4.11326215]
[1750840300525,4.11255014,2431.6,2431.1,4.11326215]
[1750840300855,14.11242206,2431.7,2431.1,4.11327833]
[1750840301061,1.98362508,2431.6,2431.1,4.11327833]
[1750840301226,1.5944,2431.5,2431.1,4.11327833]
[1750840301419,15.70717071,2431.5,2430.9,8.835]
[1750840301624,15.70717071,2431.5,2431.0,4.11353352]
[1750840301852,16.89469332,2431.5,2431.0,4.11353352]
[1750840302048,12.78192261,2431.5,2430.8,4.11383423]
[1750840302221,16.8946777,2431.5,2431.0,4.11352304]
[1750840303059,16.89464043,2431.5,2431.0,4.1134259]
[1750840303749,16.89469983,2431.5,2431.0,4.1134259]
[1750840304043,1.68946998,2431.4,2431.0,4.1134259]
[1750840304224,10.0,2431.3,2430.9,4.11362694]
[1750840304431,4.11319512,2431.2,2430.6,4.11413165]
[1750840304659,5.64289068,2431.1,2430.6,4.11413165]
[1750840304967,0.56428907,2431.0,2430.6,4.11413165]
[1750840305328,1.5295,2431.1,2430.7,4.11397237]
[1750840305528,1.5295,2431.1,2430.8,4.11377005]
[1750840306447,1.68946998,2431.4,2431.0,4.11344291]
[1750840306448,3.21846998,2431.4,2431.0,4.11344291]
[1750840306642,3.21846998,2431.4,2431.1,4.11332469]
[1750840306962,7.33148611,2431.4,2430.9,4.11353634]
[1750840307460,4.11303154,2431.3,2430.9,4.11353634]
[1750840307758,1.85190241,2431.3,2430.9,4.11368195]
[1750840308459,1.85190241,2431.3,2430.9,4.11370274]
[1750840308758,3.21846998,2431.4,2430.9,4.11370274]
[1750840308947,7.33134157,2431.4,2430.6,8.81]
[1750840309264,1.529,2431.4,2431.0,4.11352965]
[1750840309458,5.64193981,2431.4,2430.9,4.11364594]
[1750840309664,5.64193981,2431.4,2430.7,5.65087236]
[1750840309863,5.64193981,2431.4,2430.8,4.11387197]
[1750840310165,5.64193981,2431.4,2430.8,4.1138028]
[1750840310166,4.11303842,2431.3,2430.8,4.1138028]
[1750840310337,6.20726284,2431.3,2430.8,4.1138028]
[1750840310538,6.20726284,2431.3,2430.7,1.5369]
[1750840310539,4.11324062,2431.2,2430.7,1.5369]
[1750840310757,4.11324062,2431.2,2430.7,5.65085504]
[1750840311262,4.11324062,2431.2,2430.6,12.92418673]
[1750840311263,4.11338578,2431.1,2430.6,4.11414293]
[1750840311441,4.11327224,2431.2,2430.7,12.91803973]
[1750840311648,4.11348915,2431.1,2430.7,8.804]
[1750840312538,6.20729048,2431.3,2430.7,12.91802103]
[1750840312766,4.8869002,2431.2,2430.7,4.11402103]
[1750840312959,4.11339882,2431.1,2430.7,8.803]
[1750840313138,4.11339882,2431.1,2430.7,8.798]
[1750840313840,4.11339882,2431.1,2430.6,4.1141727]
[1750840314338,4.11339882,2431.1,2430.7,12.91003546]
[1750840314559,4.11339882,2431.1,2430.7,8.795]
[1750840315487,10.0,2431.0,2430.5,1.563]
[1750840315769,5.73251623,2430.9,2430.6,8.792]
[1750840316165,10.0,2431.0,2430.6,12.90620298]
[1750840316679,14.11362865,2431.0,2430.6,1.873]
[1750840316882,4.11372338,2430.9,2430.6,8.791]
[1750840317344,10.0,2430.8,2430.6,8.791]
[1750840318304,2.09174107,2430.9,2430.6,8.791]
[1750840318501,10.0,2430.8,2430.6,1.873]
[1750840318796,10.0,2430.8,2430.6,8.789]
[1750840319610,14.11363242,2431.0,2430.6,8.789]
[1750840319778,10.0,2430.8,2430.4,8.3536]
[1750840319978,4.11408373,2430.7,2430.5,6.91]
[1750840320377,14.11394791,2430.8,2430.5,6.91]
[1750840320579,4.11404252,2430.7,2430.5,6.91]
[1750840320785,4.11404252,2430.7,2430.1,1.873]
[1750840320786,1.5131,2430.7,2430.1,1.873]
[1750840320980,4.11456365,2430.4,2430.1,8.78]
[1750840321180,14.11456365,2430.4,2430.1,8.78]
[1750840321581,10.0,2430.3,2430.1,8.78]
[1750840321782,10.0,2430.4,2430.2,4.11476395]
[1750840321994,11.5131,2430.7,2430.1,8.78]
[1750840322199,15.62721818,2430.7,2430.1,8.78]
[1750840322394,4.11423713,2430.6,2430.1,12.89498007]
[1750840322597,17.7836175,2430.7,2430.3,1.6423]
[1750840322598,1.5131,2430.7,2430.3,1.6423]
[1750840322806,14.1139552,2430.8,2430.3,4.1146976]
[1750840323211,10.0,2430.8,2430.3,4.1146976]
[1750840323408,10.0,2430.8,2430.4,4.11450889]
[1750840323790,2.5,2430.8,2430.6,1.6308]
[1750840323998,2.5,2430.8,2430.5,11.03137422]
[1750840323999,4.1136154,2431.0,2430.5,11.03137422]
[1750840324200,4.11371208,2430.9,2430.5,4.979]
[1750840324598,4.11371208,2430.9,2430.5,9.09336027]
[1750840324804,4.11362229,2431.0,2430.5,9.09325931]
[1750840325007,4.11344591,2431.1,2430.5,9.09325931]
[1750840325308,4.11344591,2431.1,2430.6,4.11417343]
[1750840325513,4.11362948,2431.0,2430.5,9.09335703]
[1750840325694,4.11342573,2431.1,2430.6,4.11415324]
[1750840326013,10.0,2431.0,2430.6,4.11415324]
[1750840326216,10.0,2431.0,2430.5,4.97875703]
[1750840326217,14.11362862,2431.0,2430.5,0.8644]
[1750840326409,4.11343309,2431.1,2430.5,0.8644]
[1750840326594,10.0,2431.0,2430.6,4.11416403]
[1750840326995,1.5942,2431.2,2430.8,4.11374896]
[1750840327189,11.5942,2431.2,2430.8,4.11374896]
[1750840327608,11.5942,2431.2,2430.7,4.11394695]
[1750840327912,15.70741631,2431.2,2430.7,4.11394695]
[1750840329317,11.5942,2431.2,2430.8,4.11377312]
[1750840329523,0.30263579,2431.3,2430.9,4.11361793]
[1750840329690,15.69836894,2431.4,2430.9,4.11361793]
[1750840330203,11.5855,2431.4,2431.0,4.11344635]
[1750840330514,10.0,2431.2,2430.8,4.11378262]
[1750840331016,15.69844616,2431.4,2430.9,4.11368053]
[1750840332526,10.0,2431.2,2430.8,4.11378287]
[1750840332894,10.0,2431.2,2430.9,4.11369522]
[1750840333515,4.11303341,2431.3,2430.9,4.11369522]
[1750840333791,10.0,2431.2,2430.7,5.64807458]
[1750840333995,11.56985334,2431.2,2430.8,1.873]
[1750840334216,4.11337365,2431.1,2430.8,1.873]
[1750840334521,14.1132793,2431.2,2430.8,1.873]
[1750840334700,14.1132793,2431.2,2430.7,5.98697458]
[1750840335019,4.11336432,2431.1,2430.7,1.873]
[1750840336029,14.11327501,2431.2,2430.7,5.9870216]
[1750840336325,4.11339563,2431.1,2430.7,1.873]
[1750840336622,14.11327643,2431.2,2430.7,5.98703781]
[1750840337127,14.11329131,2431.2,2430.7,5.98703781]
[1750840338423,4.11341884,2431.1,2430.7,1.873]
[1750840338630,14.11327583,2431.2,2430.7,5.98700259]
[1750840339010,14.11327583,2431.2,2430.8,4.11384365]
[1750840339311,14.11327583,2431.2,2430.7,5.98696402]
[1750840339618,4.11340039,2431.1,2430.7,1.873]
[1750840339827,4.11340039,2431.1,2430.7,5.98700706]
[1750840340010,0.31405748,2431.3,2430.8,4.11379646]
[1750840340327,10.0,2431.2,2430.8,4.11379646]
[1750840341332,1.5855,2431.4,2430.7,1.873]
[1750840341513,14.11333412,2431.2,2430.7,5.98695083]
[1750840341910,14.11333412,2431.2,2430.5,1.5756]
[1750840341911,4.11355426,2431.0,2430.5,1.854]
[1750840342129,10.0,2430.8,2430.5,1.854]
[1750840342336,5.74251679,2430.7,2430.2,4.11486946]
[1750840342728,4.1142345,2430.6,2430.1,12.62015378]
[1750840342903,5.74251519,2430.7,2430.2,4.11485814]
[1750840343433,4.11430476,2430.6,2430.2,4.1148709]
[1750840343611,15.74249848,2430.7,2430.2,4.1148709]
[1750840343998,11.6284,2430.7,2430.2,4.1148709]
[1750840344199,1.6284,2430.7,2430.3,4.11469132]
[1750840344404,1.6284,2430.7,2430.4,4.11451173]
[1750840344838,1.5352,2430.9,2430.5,4.11430269]
[1750840345035,1.5352,2430.9,2430.5,4.11427659]
[1750840345818,1.5352,2430.9,2430.4,1.1965]
[1750840346033,10.0,2431.0,2430.5,4.11432411]
[1750840346227,14.11353497,2431.0,2430.5,4.11430181]
[1750840349618,10.0,2430.8,2430.4,5.3110053]
[1750840349923,14.11362752,2431.0,2430.5,4.11433681]
[1750840350128,10.0,2431.1,2430.7,4.11392434]
[1750840350333,15.64847791,2431.2,2430.7,4.11395504]
[1750840350522,22.53447791,2431.2,2430.7,4.11395504]
[1750840351913,18.4212,2431.2,2430.8,4.1137979]
[1750840352112,18.4212,2431.2,2430.7,4.11395504]
[1750840352340,18.4212,2431.2,2430.8,4.11379032]
[1750840352522,18.4212,2431.2,2430.7,4.11399748]
[1750840352722,18.4212,2431.2,2430.8,4.11375827]
[1750840352926,1.5352,2431.2,2430.9,4.1136928]
[1750840353130,11.5352,2431.2,2430.9,4.1136928]
[1750840353746,10.0,2431.2,2430.9,4.1136928]
[1750840354714,10.0,2431.2,2430.9,4.11368314]
[1750840355041,1.854,2431.7,2431.1,4.11324833]
[1750840355042,4.11255618,2431.6,2431.1,4.11324833]
[1750840355245,5.65894048,2431.7,2431.2,4.11317699]
[1750840355541,5.65894048,2431.7,2431.0,4.11349462]
[1750840355542,10.0,2431.6,2431.0,4.11343344]
[1750840355710,1.5465,2431.7,2431.3,4.11299741]
[1750840355916,1.56587773,2431.6,2431.3,4.11299741]
[1750840356215,12.57199302,2431.9,2431.4,4.11277059]
[1750840356535,5.69099302,2431.9,2431.3,5.30947775]
[1750840356735,8.4589,2431.9,2431.4,4.11272855]
[1750840357043,5.69095197,2431.9,2431.4,4.11272855]
[1750840357243,1.5789,2431.9,2431.4,4.11285679]
[1750840357429,2.25582703,2431.9,2431.5,4.11260856]
[1750840357635,12.25582703,2431.9,2431.6,4.11251445]
[1750840358022,2.25582703,2431.9,2431.2,1.854]
[1750840358243,4.11221156,2431.8,2431.3,4.11295113]
[1750840358616,6.36793134,2431.9,2431.4,4.11284385]
[1750840358817,2.04798439,2431.8,2431.4,4.11284385]
[1750840359660,1.5806,2431.7,2431.4,4.1128377]
[1750840359819,1.5806,2431.7,2431.2,4.11309374]
[1750840360146,1.5806,2431.7,2431.3,4.11300291]
[1750840360671,5.69298777,2431.7,2430.9,4.11365148]
[1750840360952,4.11337415,2431.1,2430.6,5.96810976]
[1750840361142,5.66817341,2431.0,2430.5,9.87]
[1750840361326,5.66817341,2431.0,2430.5,15.83828696]
[1750840361327,11.5545,2431.0,2430.5,15.83828696]
[1750840361934,1.5545,2431.0,2430.5,11.724]
[1750840362144,1.5545,2431.0,2430.6,4.11410414]
[1750840362347,7.23485748,2431.0,2430.5,5.96830931]
[1750840362540,1.5545,2431.0,2430.6,4.11419678]
[1750840363844,1.5545,2431.0,2430.6,4.11419656]
[1750840364643,1.5545,2431.0,2430.8,4.11384238]
[1750840364819,1.5545,2431.0,2430.8,4.11386368]
[1750840365623,10.0,2431.1,2430.5,1.854]
[1750840365824,10.0,2431.1,2430.9,4.11370274]
[1750840366223,10.0,2431.1,2430.5,1.854]
[1750840366424,10.0,2431.1,2430.9,4.11367294]
[1750840366959,10.0,2431.1,2430.9,4.11361955]
[1750840367348,10.0,2431.1,2430.5,5.96835542]
[1750840367648,10.0,2431.1,2430.9,4.11367568]
[1750840368060,1.5902,2431.2,2430.6,4.1141933]
[1750840368261,10.0,2431.3,2430.9,4.11357029]
[1750840368733,10.0,2431.3,2431.0,4.1135331]
[1750840369751,10.0,2431.3,2430.9,4.11362243]
[1750840370154,10.0,2431.3,2431.0,4.11351747]
[1750840370351,10.0,2431.3,2430.9,4.11362351]
[1750840370556,10.0,2431.3,2431.0,4.1134561]
[1750840370737,1.6336,2431.4,2431.2,4.11319512]
[1750840370933,1.6336,2431.4,2431.1,4.11327574]
[1750840371248,11.6226,2431.6,2431.2,4.11306393]
[1750840371453,1.6226,2431.6,2431.2,4.11310288]
[1750840372167,1.6226,2431.6,2431.3,4.11294077]
[1750840372663,1.6226,2431.6,2431.2,4.11310446]